fUSD/lending_fUSD_20240412
["ID","MTS","AMOUNT","RATE_DAILY","PERIOD"]
[322265101,1712919046667,-34232.74192991,0.000395,30]
[322265102,1712919072353,822.55243457,0.000154,2]
[322265103,1712919081459,751.92434253,9e-05,2]
[322265104,1712919113326,8906.46261839,0.00020999,5]
[322265105,1712919116621,2850.0,6.94e-05,2]
[322265106,1712919122006,472.58143606,0.00018898,2]
[322265108,1712919150403,259.23294087,0.00015,2]
[322265128,1712920232605,-155.0,0.00020797,2]
[322265129,1712920232615,-150.0,0.00020798,2]
[322265130,1712920232625,-166.43197394,0.000208,2]
[322265131,1712920232634,-183.8866087,0.000209,3]
[322265198,1712920238528,-832.88650331,0.000209,3]
[322265200,1712920238542,-188.80232167,0.000209,2]
[322265202,1712920238551,-174.81849098,0.000209,2]
[322265204,1712920238561,-5709.71384031,0.000209,2]
[322265238,1712920239009,-2706.10420201,0.000209,2]
[322265239,1712920239022,-8879.36959379,0.000209,2]
[322265240,1712920239031,-13544.33456855,0.000209,2]
[322265241,1712920239041,-156.11551097,0.000209,2]
[322265242,1712920239051,-306.88594754,0.000209,2]
[322265243,1712920239061,-1321.8139739,0.000209,2]
[322265244,1712920239070,-2461.4864092,0.000209,2]
[322265245,1712920239080,-329.3158728,0.000209,2]
[322265246,1712920239089,-336.45743374,0.000209,2]
[322265247,1712920239099,-370.86432007,0.000209,2]
[322265248,1712920239109,-261.43307599,0.000209,3]
[322265249,1712920239118,-170.55362329,0.000209,2]
[322265250,1712920239127,-220.23863973,0.0002099,2]
[322265251,1712920239136,-10227.76107379,0.00020998,2]
[322265252,1712920239146,-500.0,0.00020999,2]
[322265253,1712920239155,-500.0,0.00020999,2]
[322265254,1712920239164,-500.0,0.00020999,2]
[322265255,1712920239173,-631.88721127,0.00020999,2]
[322265256,1712920239182,-162.69739547,0.00020999,2]
[322265257,1712920239191,-500.0,0.00020999,2]
[322265258,1712920239200,-398.9114636,0.00020999,2]
[322265259,1712920239210,-500.0,0.00020999,2]
[322265260,1712920239219,-500.0,0.00020999,2]
[322265261,1712920239228,-500.0,0.00020999,2]
[322265262,1712920239238,-500.0,0.00020999,2]
[322265263,1712920239247,-500.0,0.00020999,2]
[322265264,1712920239256,-500.0,0.00020999,2]
[322265265,1712920239266,-500.0,0.00020999,2]
[322265266,1712920239275,-500.0,0.00020999,2]
[322265267,1712920239284,-500.0,0.00020999,2]
[322265268,1712920239294,-500.0,0.00020999,2]
[322265269,1712920239303,-500.0,0.00020999,2]
[322265270,1712920239312,-500.0,0.00020999,2]
[322265271,1712920239321,-500.0,0.00020999,2]
[322265272,1712920239330,-500.0,0.00020999,2]
[322265273,1712920239340,-500.0,0.00020999,2]
[322265274,1712920239350,-500.0,0.00020999,2]
[322265275,1712920239359,-500.0,0.00020999,2]
[322265276,1712920239368,-500.0,0.00020999,2]
[322265277,1712920239377,-500.0,0.00020999,2]
[322265278,1712920239386,-500.0,0.00020999,2]
[322265279,1712920239395,-500.0,0.00020999,2]
[322265280,1712920239405,-500.0,0.00020999,2]
[322265281,1712920239417,-301.18198332,0.00020999,2]
[322265282,1712920239427,-500.0,0.00020999,2]
[322265283,1712920239436,-500.0,0.00020999,2]
[322265284,1712920239445,-500.0,0.00020999,2]
[322265285,1712920239455,-500.0,0.00020999,2]
[322265286,1712920239464,-500.0,0.00020999,2]
[322265287,1712920239474,-604.94518417,0.00020999,2]
[322265288,1712920239483,-500.0,0.00020999,2]
[322265289,1712920239492,-500.0,0.00020999,2]
[322265290,1712920239502,-500.0,0.00020999,2]
[322265291,1712920239511,-332.77963145,0.00020999,2]
[322265292,1712920239520,-500.0,0.00020999,2]
[322265293,1712920239529,-200.0,0.00020999,2]
[322265294,1712920239539,-178.32724268,0.00020999,2]
[322265295,1712920239548,-499.99,0.00021,2]
[322265296,1712920239557,-1229.13146192,0.00021,2]
[322265297,1712920239567,-14631817.57786576,0.00021,2]
[322265298,1712920239581,-9233341.11024593,0.00021,2]
[322265299,1712920239590,-95041.46162424,0.00021,2]
[322265300,1712920239601,-715.17033749,0.00021,2]
[322265301,1712920239610,-845.23,0.00021,2]
[322265302,1712920239619,-632.27,0.00021,2]
[322265303,1712920239628,-250.0,0.00021,3]
[322265304,1712920239637,-600.39,0.00021076,2]
[322265305,1712920239647,-228.83,0.00021918,2]
[322265306,1712920239656,-784.98323326,0.00022,2]
[322265307,1712920239665,-210.0,0.00022878,2]
[322265308,1712920239675,-1710.57,0.00022979,2]
[322265309,1712920239684,-502.13,0.00022994,2]
[322265310,1712920239694,-155.38304299,0.00023,2]
[322265311,1712920239703,-307.15291842,0.00023,2]
[322265312,1712920239713,-300.0,0.00023,3]
[322265313,1712920239722,-1852.42,0.00023087,2]
[322265314,1712920239731,-250.0,0.00023119,2]
[322265315,1712920239741,-191.47,0.00023159,2]
[322265316,1712920239750,-1564.78,0.00023276,2]
[322265317,1712920239760,-600.39,0.0002334,2]
[322265318,1712920239769,-11221.04,0.00023404,2]
[322265319,1712920239778,-511.81,0.00023422,2]
[322265320,1712920239787,-3952.61502071,0.000235,2]
[322265321,1712920239799,-200.0,0.0002358,2]
[322265322,1712920239810,-653.17,0.00023699,2]
[322265323,1712920239819,-155.74,0.00023784,2]
[322265324,1712920239828,-1122.44,0.00023793,2]
[322265325,1712920239838,-156.11551096,0.00023897,2]
[322265326,1712920239848,-224.62727988,0.00024,2]
[322265327,1712920239857,-208.18996497,0.00024,2]
[322265328,1712920239866,-250.0,0.00024027,2]
[322265329,1712920239877,-500.0,0.00024075,2]
[322265330,1712920239886,-155.74,0.00024094,2]
[322265331,1712920239896,-250.0,0.00024141,2]
[322265332,1712920239906,-168.19,0.0002417,2]
[322265333,1712920239915,-155.74,0.00024404,2]
[322265334,1712920239925,-328.573,0.00024435,2]
[322265335,1712920239934,-281.74817421,0.000245,2]
[322265336,1712920239943,-328.573,0.00024545,2]
[322265337,1712920239952,-328.573,0.00024656,2]
[322265338,1712920239962,-428.55,0.00024658,2]
[322265339,1712920239971,-228.83,0.00024658,2]
[322265340,1712920239982,-155.74,0.00024714,2]
[322265341,1712920239992,-159.17,0.00024761,2]
[322265342,1712920240001,-328.573,0.00024769,2]
[322265343,1712920240011,-2223.73711434,0.000248,2]
[322265344,1712920240021,-328.573,0.00024882,2]
[322265345,1712920240030,-328.573,0.00024997,2]
[322265346,1712920240040,-1681.0,0.00025,2]
[322265347,1712920240049,-562.65039884,0.00025,2]
[322265348,1712920240059,-155.0,0.00025,2]
[322265349,1712920240069,-155.2308273,0.00025,2]
[322265350,1712920240078,-155.0,0.00025,2]
[322265351,1712920240087,-1361.64470333,0.00025,2]
[322265352,1712920240096,-2604.28990565,0.00025,2]
[322265353,1712920240106,-490.0,0.00025,2]
[322265354,1712920240116,-859.15166946,0.00025,2]
[322265355,1712920240126,-350.0,0.00025,3]
[322265357,1712920240135,-155.74,0.00025023,2]
[322265359,1712920240144,-328.573,0.00025112,2]
[322265361,1712920240153,-293.0,0.00025166,2]
[322265363,1712920240162,-168.19,0.00025167,2]
[322265365,1712920240172,-328.573,0.00025229,2]
[322265367,1712920240182,-328.573,0.00025347,2]
[322265368,1712920240191,-328.573,0.00025466,2]
[322265371,1712920240200,-600.39,0.00025604,2]
[322265372,1712920240210,-275830.78694956,0.00026,2]
[322265374,1712920240219,-1564.78,0.00026016,2]
[322265377,1712920240228,-159.17,0.00026131,2]
[322265379,1712920240237,-168.19,0.00026165,2]
[322265381,1712920240247,-156.11551096,0.00026894,2]
[322265383,1712920240256,-1000.0,0.00027,2]
[322265385,1712920240266,-172.64538748,0.00027,2]
[322265387,1712920240276,-169.31939491,0.00027,2]
[322265389,1712920240285,-400.0,0.00027,3]
[322265391,1712920240295,-11023.53,0.00027123,2]
[322265393,1712920240304,-168.19,0.00027162,2]
[322265395,1712920240314,-800.0,0.0002737,2]
[322265397,1712920240323,-1034884.48441976,0.0002738,2]
[322265399,1712920240332,-500.0,0.00027397,2]
[322265401,1712920240342,-500.0,0.00027397,2]
[322265403,1712920240352,-500.0,0.00027397,2]
[322265405,1712920240362,-500.0,0.00027397,2]
[322265407,1712920240372,-500.0,0.00027397,2]
[322265409,1712920240381,-518.55399294,0.00027397,2]
[322265411,1712920240390,-500.0,0.00027397,2]
[322265413,1712920240400,-500.0,0.00027397,2]
[322265415,1712920240410,-500.0,0.00027397,2]
[322265417,1712920240419,-500.0,0.00027397,2]
[322265419,1712920240429,-500.0,0.00027397,2]
[322265421,1712920240438,-500.0,0.00027397,2]
[322265423,1712920240447,-500.0,0.00027397,2]
[322265425,1712920240456,-500.0,0.00027397,2]
[322265427,1712920240465,-500.0,0.00027397,2]
[322265429,1712920240474,-500.0,0.00027397,2]
[322265430,1712920240483,-500.0,0.00027397,2]
[322265432,1712920240493,-500.0,0.00027397,2]
[322265434,1712920240502,-500.0,0.00027397,2]
[322265436,1712920240512,-500.0,0.00027397,2]
[322265438,1712920240521,-500.0,0.00027397,2]
[322265440,1712920240531,-500.0,0.00027397,2]
[322265442,1712920240540,-500.0,0.00027397,2]
[322265444,1712920240550,-500.0,0.00027397,2]
[322265446,1712920240559,-500.0,0.00027397,2]
[322265448,1712920240570,-500.0,0.00027397,2]
[322265449,1712920240579,-500.0,0.00027397,2]
[322265450,1712920240588,-500.0,0.00027397,2]
[322265451,1712920240598,-500.0,0.00027397,2]
[322265452,1712920240607,-500.0,0.00027397,2]
[322265453,1712920240617,-500.0,0.00027397,2]
[322265454,1712920240626,-500.0,0.00027397,2]
[322265455,1712920240635,-500.0,0.00027397,2]
[322265457,1712920240645,-500.0,0.00027397,2]
[322265459,1712920240654,-500.0,0.00027397,2]
[322265461,1712920240664,-500.0,0.00027397,2]
[322265463,1712920240673,-500.0,0.00027397,2]
[322265465,1712920240684,-535.19879133,0.00027397,2]
[322265467,1712920240695,-500.0,0.00027397,2]
[322265469,1712920240704,-500.0,0.00027397,2]
[322265471,1712920240714,-500.0,0.00027397,2]
[322265474,1712920240724,-500.0,0.00027397,2]
[322265476,1712920240734,-500.0,0.00027397,2]
[322265478,1712920240743,-500.0,0.00027397,2]
[322265480,1712920240754,-500.0,0.00027397,2]
[322265482,1712920240764,-500.0,0.00027397,2]
[322265484,1712920240773,-500.0,0.00027397,2]
[322265486,1712920240783,-500.0,0.00027397,2]
[322265488,1712920240794,-500.0,0.00027397,2]
[322265490,1712920240806,-500.0,0.00027397,2]
[322265492,1712920240817,-500.0,0.00027397,2]
[322265493,1712920240827,-500.0,0.00027397,2]
[322265495,1712920240838,-500.0,0.00027397,2]
[322265497,1712920240848,-500.0,0.00027397,2]
[322265499,1712920240858,-500.0,0.00027397,2]
[322265501,1712920240868,-500.0,0.00027397,2]
[322265503,1712920240878,-500.0,0.00027397,2]
[322265506,1712920240890,-500.0,0.00027397,2]
[322265508,1712920240901,-500.0,0.00027397,2]
[322265510,1712920240911,-493.18232038,0.00027397,2]
[322265512,1712920240920,-500.0,0.00027397,2]
[322265514,1712920240930,-500.0,0.00027397,2]
[322265517,1712920240940,-500.0,0.00027397,2]
[322265519,1712920240950,-500.0,0.00027397,2]
[322265521,1712920240960,-500.0,0.00027397,2]
[322265523,1712920240969,-500.0,0.00027397,2]
[322265525,1712920240978,-500.0,0.00027397,2]
[322265527,1712920240987,-500.0,0.00027397,2]
[322265529,1712920240996,-500.0,0.00027397,2]
[322265531,1712920241006,-500.0,0.00027397,2]
[322265533,1712920241015,-500.0,0.00027397,2]
[322265535,1712920241024,-2625.19,0.00027397,2]
[322265536,1712920241033,-500.0,0.00027397,2]
[322265538,1712920241042,-500.0,0.00027397,2]
[322265540,1712920241051,-500.0,0.00027397,2]
[322265542,1712920241061,-500.0,0.00027397,2]
[322265544,1712920241069,-500.0,0.00027397,2]
[322265546,1712920241079,-500.0,0.00027397,2]
[322265548,1712920241088,-500.0,0.00027397,2]
[322265550,1712920241098,-500.0,0.00027397,2]
[322265552,1712920241107,-500.0,0.00027397,2]
[322265554,1712920241116,-500.0,0.00027397,2]
[322265556,1712920241125,-504.77539319,0.00027397,2]
[322265557,1712920241135,-500.0,0.00027397,2]
[322265559,1712920241144,-500.0,0.00027397,2]
[322265560,1712920241153,-500.0,0.00027397,2]
[322265562,1712920241162,-501.62099115,0.00027397,2]
[322265564,1712920241171,-500.0,0.00027397,2]
[322265565,1712920241180,-512.89140665,0.00027397,2]
[322265567,1712920241189,-441.54761161,0.00027397,2]
[322265569,1712920241198,-500.0,0.00027397,2]
[322265570,1712920241208,-486.71270498,0.00027397,2]
[322265572,1712920241217,-500.0,0.00027397,2]
[322265574,1712920241226,-500.0,0.00027397,2]
[322265575,1712920241235,-500.0,0.00027397,2]
[322265577,1712920241244,-502.31412365,0.00027397,2]
[322265579,1712920241254,-500.0,0.00027397,2]
[322265580,1712920241263,-500.0,0.00027397,2]
[322265582,1712920241273,-500.0,0.00027397,2]
[322265584,1712920241282,-500.0,0.00027397,2]
[322265586,1712920241291,-500.0,0.00027397,2]
[322265587,1712920241301,-488.21405868,0.00027397,2]
[322265589,1712920241310,-500.0,0.00027397,2]
[322265591,1712920241320,-500.0,0.00027397,2]
[322265593,1712920241329,-500.0,0.00027397,2]
[322265594,1712920241339,-500.0,0.00027397,2]
[322265596,1712920241349,-500.0,0.00027397,2]
[322265598,1712920241358,-500.0,0.00027397,2]
[322265600,1712920241367,-500.0,0.00027397,2]
[322265601,1712920241376,-500.08458613,0.00027397,2]
[322265603,1712920241385,-500.0,0.00027397,2]
[322265605,1712920241394,-500.0,0.00027397,2]
[322265607,1712920241404,-500.0,0.00027397,2]
[322265608,1712920241413,-494.84632216,0.00027397,2]
[322265610,1712920241423,-633.07439663,0.00027397,2]
[322265612,1712920241432,-500.0,0.00027397,2]
[322265614,1712920241441,-500.0,0.00027397,2]
[322265615,1712920241450,-500.0,0.00027397,2]
[322265617,1712920241460,-500.0,0.00027397,2]
[322265619,1712920241469,-500.0,0.00027397,2]
[322265621,1712920241478,-500.0,0.00027397,2]
[322265622,1712920241487,-509.06245032,0.00027397,2]
[322265624,1712920241497,-500.0,0.00027397,2]
[322265626,1712920241506,-500.0,0.00027397,2]
[322265627,1712920241515,-500.0,0.00027397,2]
[322265629,1712920241525,-500.0,0.00027397,2]
[322265631,1712920241535,-500.0,0.00027397,2]
[322265633,1712920241544,-500.0,0.00027397,2]
[322265635,1712920241554,-515.05354312,0.00027397,2]
[322265637,1712920241562,-500.0,0.00027397,2]
[322265638,1712920241572,-601.01072066,0.00027397,2]
[322265640,1712920241581,-571.65245961,0.00027397,2]
[322265642,1712920241590,-500.0,0.00027397,2]
[322265657,1712920241809,-505.47281761,0.00027397,2]
[322265659,1712920241820,-500.0,0.00027397,2]
[322265661,1712920241829,-500.0,0.00027397,2]
[322265663,1712920241841,-500.0,0.00027397,2]
[322265665,1712920241850,-500.0,0.00027397,2]
[322265667,1712920241860,-501.01009068,0.00027397,2]
[322265669,1712920241869,-500.0,0.00027397,2]
[322265671,1712920241880,-500.0,0.00027397,2]
[322265673,1712920241890,-500.0,0.00027397,2]
[322265675,1712920241901,-500.0,0.00027397,2]
[322265677,1712920241909,-500.0,0.00027397,2]
[322265679,1712920241919,-500.0,0.00027397,2]
[322265681,1712920241928,-502.82560971,0.00027397,2]
[322265683,1712920241938,-500.0,0.00027397,2]
[322265685,1712920241948,-500.0,0.00027397,2]
[322265687,1712920241961,-500.0,0.00027397,2]
[322265689,1712920241970,-500.0,0.00027397,2]
[322265691,1712920241980,-500.0,0.00027397,2]
[322265694,1712920241990,-500.0,0.00027397,2]
[322265696,1712920241999,-500.0,0.00027397,2]
[322265698,1712920242010,-500.0,0.00027397,2]
[322265700,1712920242019,-500.0,0.00027397,2]
[322265702,1712920242028,-500.0,0.00027397,2]
[322265704,1712920242039,-500.0,0.00027397,2]
[322265706,1712920242050,-500.0,0.00027397,2]
[322265708,1712920242060,-500.0,0.00027397,2]
[322265710,1712920242070,-500.0,0.00027397,2]
[322265712,1712920242079,-501.66064014,0.00027397,2]
[322265714,1712920242088,-500.0,0.00027397,2]
[322265717,1712920242098,-516.46133117,0.00027397,2]
[322265719,1712920242109,-500.0,0.00027397,2]
[322265721,1712920242119,-500.0,0.00027397,2]
[322265723,1712920242129,-505.15046055,0.00027397,2]
[322265725,1712920242138,-500.0,0.00027397,2]
[322265727,1712920242148,-500.0,0.00027397,2]
[322265729,1712920242157,-500.0,0.00027397,2]
[322265731,1712920242166,-500.0,0.00027397,2]
[322265733,1712920242175,-500.0,0.00027397,2]
[322265735,1712920242184,-500.0,0.00027397,2]
[322265737,1712920242193,-500.0,0.00027397,2]
[322265739,1712920242203,-507.89926353,0.00027397,2]
[322265741,1712920242211,-500.0,0.00027397,2]
[322265742,1712920242221,-531.23508101,0.00027397,2]
[322265744,1712920242231,-500.0,0.00027397,2]
[322265746,1712920242241,-500.32559557,0.00027397,2]
[322265749,1712920242251,-301.03033701,0.00027397,2]
[322265751,1712920242260,-500.0,0.00027397,2]
[322265753,1712920242270,-500.0,0.00027397,2]
[322265754,1712920242280,-500.0,0.00027397,2]
[322265756,1712920242289,-152.80830788,0.00027397,2]
[322265758,1712920242299,-269.02542023,0.00027397,2]
[322265760,1712920242308,-500.0,0.00027397,2]
[322265762,1712920242318,-500.0,0.00027397,2]
[322265764,1712920242328,-500.0,0.00027397,2]
[322265766,1712920242337,-500.0,0.00027397,2]
[322265768,1712920242347,-500.0,0.00027397,2]
[322265770,1712920242357,-500.0,0.00027397,2]
[322265772,1712920242367,-500.0,0.00027397,2]
[322265774,1712920242376,-511.08481742,0.00027397,2]
[322265776,1712920242385,-500.0,0.00027397,2]
[322265778,1712920242394,-500.0,0.00027397,2]
[322265780,1712920242404,-500.0,0.00027397,2]
[322265782,1712920242414,-500.0,0.00027397,2]
[322265784,1712920242423,-500.0,0.00027397,2]
[322265786,1712920242432,-150.0,0.00027397,2]
[322265788,1712920242442,-500.0,0.00027397,2]
[322265790,1712920242451,-500.0,0.00027397,2]
[322265791,1712920242460,-544.29930275,0.00027397,2]
[322265794,1712920242471,-500.0,0.00027397,2]
[322265796,1712920242481,-503.9490068,0.00027397,2]
[322265798,1712920242491,-500.0,0.00027397,2]
[322265800,1712920242503,-500.0,0.00027397,2]
[322265802,1712920242512,-531.79394109,0.00027397,2]
[322265804,1712920242521,-500.0,0.00027397,2]
[322265806,1712920242530,-500.0,0.00027397,2]
[322265808,1712920242540,-500.0,0.00027397,2]
[322265810,1712920242549,-500.0,0.00027397,2]
[322265812,1712920242558,-500.0,0.00027397,2]
[322265814,1712920242567,-500.0,0.00027397,2]
[322265816,1712920242577,-500.0,0.00027397,2]
[322265818,1712920242586,-500.0,0.00027397,2]
[322265820,1712920242595,-500.0,0.00027397,2]
[322265822,1712920242605,-505.95941876,0.00027397,2]
[322265824,1712920242614,-500.0,0.00027397,2]
[322265826,1712920242623,-500.0,0.00027397,2]
[322265827,1712920242633,-500.0,0.00027397,2]
[322265829,1712920242643,-500.0,0.00027397,2]
[322265831,1712920242654,-500.0,0.00027397,2]
[322265833,1712920242664,-500.0,0.00027397,2]
[322265836,1712920242674,-500.0,0.00027397,2]
[322265837,1712920242684,-500.0,0.00027397,2]
[322265839,1712920242693,-500.0,0.00027397,2]
[322265841,1712920242702,-500.0,0.00027397,2]
[322265843,1712920242711,-500.0,0.00027397,2]
[322265845,1712920242720,-500.0,0.00027397,2]
[322265847,1712920242729,-1000.0,0.00027397,2]
[322265849,1712920242738,-500.0,0.00027397,2]
[322265851,1712920242748,-500.0,0.00027397,2]
[322265853,1712920242758,-500.0,0.00027397,2]
[322265855,1712920242767,-500.0,0.00027397,2]
[322265857,1712920242775,-529.69304351,0.00027397,2]
[322265859,1712920242785,-538.3545986,0.00027397,2]
[322265861,1712920242794,-500.0,0.00027397,2]
[322265863,1712920242806,-500.0,0.00027397,2]
[322265865,1712920242815,-500.0,0.00027397,2]
[322265867,1712920242824,-500.0,0.00027397,2]
[322265869,1712920242833,-542.40416691,0.00027397,2]
[322265871,1712920242843,-528.43569353,0.00027397,2]
[322265873,1712920242853,-500.0,0.00027397,2]
[322265875,1712920242862,-500.0,0.00027397,2]
[322265877,1712920242871,-500.0,0.00027397,2]
[322265879,1712920242882,-500.0,0.00027397,2]
[322265881,1712920242891,-500.0,0.00027397,2]
[322265882,1712920242901,-500.0,0.00027397,2]
[322265884,1712920242910,-500.0,0.00027397,2]
[322265885,1712920242920,-216.40711467,0.00027397,2]
[322265886,1712920242929,-500.0,0.00027397,2]
[322265887,1712920242938,-500.0,0.00027397,2]
[322265888,1712920242947,-575.2,0.00027397,2]
[322265890,1712920242956,-500.0,0.00027397,2]
[322265892,1712920242965,-500.0,0.00027397,2]
[322265894,1712920242975,-500.0,0.00027397,2]
[322265896,1712920242984,-500.0,0.00027397,2]
[322265898,1712920242993,-500.0,0.00027397,2]
[322265900,1712920243002,-520.03,0.00027397,2]
[322265902,1712920243011,-500.0,0.00027397,2]
[322265904,1712920243020,-500.0,0.00027397,2]
[322265906,1712920243030,-500.0,0.00027397,2]
[322265908,1712920243039,-500.0,0.00027397,2]
[322265910,1712920243048,-500.0,0.00027397,2]
[322265912,1712920243057,-152.10638196,0.00027397,2]
[322265914,1712920243067,-500.0,0.00027397,2]
[322265916,1712920243077,-473.53000131,0.00027397,2]
[322265918,1712920243086,-500.0,0.00027397,2]
[322265920,1712920243096,-500.0,0.00027397,2]
[322265922,1712920243106,-500.0,0.00027397,2]
[322265924,1712920243115,-500.0,0.00027397,2]
[322265926,1712920243125,-500.0,0.00027397,2]
[322265928,1712920243134,-500.0,0.00027397,2]
[322265929,1712920243143,-370.84745063,0.00027397,2]
[322265930,1712920243152,-541.34631006,0.00027397,2]
[322265931,1712920243161,-500.0,0.00027397,2]
[322265932,1712920243170,-500.0,0.00027397,2]
[322265933,1712920243179,-500.0,0.00027397,2]
[322265934,1712920243188,-500.0,0.00027397,2]
[322265935,1712920243197,-500.0,0.00027397,2]
[322265936,1712920243207,-500.0,0.00027397,2]
[322265937,1712920243216,-513.48984927,0.00027397,2]
[322265938,1712920243225,-500.0,0.00027397,2]
[322265939,1712920243235,-500.0,0.00027397,2]
[322265940,1712920243244,-500.0,0.00027397,2]
[322265941,1712920243253,-500.0,0.00027397,2]
[322265942,1712920243262,-500.0,0.00027397,2]
[322265944,1712920243272,-500.0,0.00027397,2]
[322265946,1712920243282,-509.21936118,0.00027397,2]
[322265948,1712920243291,-501.79103453,0.00027397,2]
[322265950,1712920243300,-431.25016338,0.00027397,2]
[322265952,1712920243310,-500.0,0.00027397,2]
[322265954,1712920243319,-500.0,0.00027397,2]
[322265955,1712920243328,-643.362851,0.00027397,2]
[322265957,1712920243338,-500.0,0.00027397,2]
[322265959,1712920243346,-500.0,0.00027397,2]
[322265962,1712920243357,-500.0,0.00027397,2]
[322265963,1712920243366,-500.0,0.00027397,2]
[322265964,1712920243375,-500.0,0.00027397,2]
[322265965,1712920243385,-500.0,0.00027397,2]
[322265966,1712920243394,-500.0,0.00027397,2]
[322265967,1712920243403,-500.0,0.00027397,2]
[322265968,1712920243412,-500.0,0.00027397,2]
[322265969,1712920243421,-500.0,0.00027397,2]
[322265970,1712920243430,-500.0,0.00027397,2]
[322265971,1712920243440,-500.0,0.00027397,2]
[322265972,1712920243449,-500.0,0.00027397,2]
[322265973,1712920243458,-502.60418016,0.00027397,2]
[322265974,1712920243467,-500.0,0.00027397,2]
[322265975,1712920243476,-537.75678544,0.00027397,2]
[322265976,1712920243485,-500.0,0.00027397,2]
[322265977,1712920243494,-500.0,0.00027397,2]
[322265978,1712920243503,-500.0,0.00027397,2]
[322265979,1712920243512,-495.48372114,0.00027397,2]
[322265980,1712920243521,-227.09863525,0.00027397,2]
[322265981,1712920243530,-285.64927331,0.00027397,2]
[322265982,1712920243540,-310.28567059,0.00027397,2]
[322265983,1712920243548,-513.6,0.00027397,2]
[322265984,1712920243557,-500.0,0.00027397,2]
[322265985,1712920243566,-500.0,0.00027397,2]
[322265986,1712920243575,-500.0,0.00027397,2]
[322265987,1712920243585,-500.0,0.00027397,2]
[322265988,1712920243594,-500.0,0.00027397,2]
[322265989,1712920243603,-568.52722949,0.00027397,2]
[322265990,1712920243613,-271.75683042,0.00027397,2]
[322265991,1712920243622,-500.0,0.00027397,2]
[322265992,1712920243631,-1076.28,0.00027397,2]
[322265993,1712920243640,-500.0,0.00027397,2]
[322265994,1712920243649,-500.0,0.00027397,2]
[322265995,1712920243658,-500.0,0.00027397,2]
[322265996,1712920243667,-500.0,0.00027397,2]
[322265997,1712920243676,-500.0,0.00027397,2]
[322265998,1712920243685,-509.61188412,0.00027397,2]
[322265999,1712920243694,-526.97159416,0.00027397,2]
[322266000,1712920243702,-500.0,0.00027397,2]
[322266001,1712920243712,-500.0,0.00027397,2]
[322266002,1712920243721,-500.0,0.00027397,2]
[322266003,1712920243731,-4360.31,0.00027397,2]
[322266004,1712920243740,-500.0,0.00027397,2]
[322266005,1712920243749,-500.0,0.00027397,2]
[322266006,1712920243758,-578.33,0.00027397,2]
[322266007,1712920243767,-589.66,0.00027397,2]
[322266008,1712920243775,-500.0,0.00027397,2]
[322266009,1712920243784,-500.0,0.00027397,2]
[322266010,1712920243794,-500.0,0.00027397,2]
[322266011,1712920243807,-500.0,0.00027397,2]
[322266012,1712920243818,-500.0,0.00027397,2]